Cogmind - Beta 15 @@@ ROGUE MODE // 2025.06.15 @ 18:57:10 Player: m1m1c Result: Destroyed by H-71 Marshal with Heavy Mass Driver Performance ------------- Evolutions (5) 2500 Regions Visited (6) 1200 Robots Destroyed (34) 170 Value Destroyed (856) 856 Prototype IDs (2) 40 Alien Tech Used (0) 0 Bonus (0) 0 TOTAL SCORE: 4766 Bonus ------- None Cogmind --------- Core Integrity 0/1000 Matter 276/300 Energy 98/100 System Corruption 3% Temperature Cool (0) Movement Core (50) Location -5/Factory Parts ------- > --- POWER (2) -------- (None) > --- PROPULSION (4) --- (None) > --- UTILITY (9) ------ (None) > --- WEAPON (2) ------- (None) > --- INVENTORY (5) ---- Angular Momentum Engine Nuclear Pulse Thruster Advanced ECM Suite Improved Light Armor Plating Peak State ------------ > --- POWER ------------ Angular Momentum Engine > --- PROPULSION ------- Xenon Bombardment Thruster Xenon Bombardment Thruster Xenon Bombardment Thruster Improved Cesium-ion Thruster > --- UTILITY ---------- Small Storage Unit Advanced Sensor Array Improved Signal Interpreter Improved Targeting Computer ECM Suite Hacking Suite Hacking Suite System Shield > --- WEAPON ----------- (None) > --- INVENTORY -------- Light Angular Momentum Engine Improved Gravmag System Advanced ECM Suite Improved Light Armor Plating Rocket Launcher Precision Grenade Launcher [Rating: 45] Favorites ----------- Power Ion Engine Engine Ion Engine Power Core Light Nuclear Core Propulsion Flight Unit Treads Light Treads Leg Aluminum Leg Hover Unit Improved Gravmag System Flight Unit Flight Unit Utility Hacking Suite Device Improved Sensor Array Storage Small Storage Unit Processor Improved Signal Interpreter Hackware Hacking Suite Protection Improved Light Armor Plating Weapon Light Assault Rifle Energy Gun EM Pulse Gun Ballistic Gun Light Assault Rifle Launcher Rocket Launcher Build | -11 -10 -9 -8 -7 -6 -5 ------- Run | Yrd Mat Mat Mat Fac Fac Fac Slots Evolved 10 | . . 2 2 2 2 2 Power 1 | . . . . . . 1 Propulsion 2 | . . . 1 1 . . Utility 7 | . . 2 1 1 2 1 Weapon . | . . . . . . . Parts Attached 40 | . 6 7 8 11 7 1 Power 4 | . . 1 1 . 2 . Engine 2 | . . 1 . . 1 . Core 2 | . . . 1 . 1 . Reactor . | . . . . . . . Propulsion 16 | . 2 4 2 6 1 1 Treads 2 | . 2 . . . . . Leg . | . . . . . . . Wheel . | . . . . . . . Hover 1 | . . . . . 1 . Flight 13 | . . 4 2 6 . 1 Utility 15 | . 3 1 4 3 4 . Device 7 | . 2 . 2 . 3 . Storage 2 | . 1 . 1 . . . Processor 2 | . . . 1 1 . . Hackware 3 | . . 1 . 1 1 . Protection 1 | . . . . 1 . . Artifact . | . . . . . . . Weapon 5 | . 1 1 1 2 . . Energy Gun 1 | . . 1 . . . . Energy Cannon . | . . . . . . . Ballistic Gun 1 | . 1 . . . . . Ballistic Cannon . | . . . . . . . Launcher 3 | . . . 1 2 . . Special Weapon . | . . . . . . . Impact Weapon . | . . . . . . . Slashing Weapon . | . . . . . . . Piercing Weapon . | . . . . . . . Special Melee Weapon . | . . . . . . . Unidentified Prototypes 2 | . . . . 2 . . Parts Lost 22 | . . 2 2 1 7 10 Power 1 | . . 1 . . . . Propulsion 10 | . . 1 1 1 5 2 Utility 8 | . . . . . 2 6 Weapon 3 | . . . 1 . . 2 Highest Loss Streak 8 | . . 2 1 1 5 8 To Critical Strikes 1 | . . 1 . . . . Average Backups 5 | . 4 5 5 7 6 5 Power 1 | . 1 1 1 1 1 1 Propulsion 2 | . 2 2 2 2 1 1 Utility 1 | . . . . 1 2 2 Weapon 1 | . 1 1 1 2 2 1 Tool/Special . | . . . . . . . Unused Backups 13 | . 6 3 1 2 . 1 Power 4 | . 1 1 . 1 . 1 Propulsion 4 | . 2 1 . 1 . . Utility 1 | . 1 . . . . . Weapon 4 | . 2 1 1 . . . Tool/Special . | . . . . . . . Average Slot Usage (%) 78 | . 95 69 80 84 80 26 Engine 6 | . 14 9 3 . 5 . Core 2 | . . . 5 7 . . Treads 7 | . 27 . . . . . Flight 16 | . . 19 27 30 25 1 Device 9 | . 9 11 16 8 8 1 Storage 7 | . 14 1 6 7 6 2 Processor 6 | . . . 7 12 13 7 Hackware 10 | . . 9 9 14 20 10 Energy Gun 4 | . 12 5 . . . . Ballistic Gun 5 | . 15 12 3 . . . Peak Build Rating 45 | . 8 10 20 35 45 34 Average Rating 19 | . 6 8 16 26 40 12 On Entrance 15 | 6 6 8 9 19 33 25 Naked Turns 4 | . . . . . . 4 Heaviest Build 29 | 13 29 8 11 14 21 7 Greatest Support 40 | 20 40 8 18 22 24 12 Greatest Overweight (x) 1 | . . . . . . 1 Average Overweight (x) . | . . . . . . . Largest Inventory Capacity 15 | . 15 15 8 8 8 8 Average Capacity 9 | . 14 5 7 8 8 6 Most Carried 9 | . 9 9 8 8 8 7 Average Carried 5 | . 4 4 5 7 6 5 Final Capacity 15 | 8 15 5 8 8 8 5 Final Carried 9 | 6 9 5 8 8 7 4 Class Distribution -------------------- 44% | Mutant 41% | Hacker-Sprinter 8% | Hacker-Mutant 5% | Scavenger-Mutant Dominant Class ---------------- Mutant | -10/Materials Mutant | -9/Materials Mutant | -8/Materials Hacker-Sprinter | -7/Factory Hacker-Sprinter | -6/Factory Hacker-Mutant | -5/Factory Resources | -11 -10 -9 -8 -7 -6 -5 ----------- Run | Yrd Mat Mat Mat Fac Fac Fac Matter Collected 960 | 200 41 72 58 431 96 62 Remotely . | . . . . . . . Salvage Created 647 | . 183 74 112 189 . 89 Parts 42 | . 10 8 8 9 . 7 Haulers Intercepted . | . . . . . . . Recyclers Shooed . | . . . . . . . Parts Field Recycled . | . . . . . . . Retrieved Matter . | . . . . . . . Parts Self-Destructed . | . . . . . . . Prevented . | . . . . . . . Kills | -11 -10 -9 -8 -7 -6 -5 ------- Run | Yrd Mat Mat Mat Fac Fac Fac Combat Hostiles Destroyed 29 | . 4 5 7 7 . 6 Guns 8 | . 3 5 . . . . AOE 21 | . 1 . 7 7 . 6 Classes Destroyed 8 | . 2 1 2 1 . 2 Worker 1 | . . . . . . 1 Builder 2 | . . . 1 1 . . Recycler 1 | . . . . 1 . . Operator 1 | . 1 . . . . . Swarmer 18 | . . 5 4 4 . 5 Grunt 9 | . 4 . 2 3 . . Brawler 1 | . . . 1 . . . Programmer 1 | . . . . . . 1 Best Kill Streak 8 | . 3 3 8 6 . 7 Combat Bots Only 7 | . 2 3 7 4 . 6 Max Kills in Single Turn 4 | . 1 1 3 4 . 2 Gunslinging . | . . . . . . . Exploded 2 | . 1 . 2 2 . 2 Melee . | . . . . . . . Uniques/NPCs Destroyed . | . . . . . . . Combat | -11 -10 -9 -8 -7 -6 -5 -------- Run | Yrd Mat Mat Mat Fac Fac Fac Hostile Shots Fired 295 | . 22 42 16 37 90 88 Missed 120 | . 8 14 8 16 42 32 Hits 175 | . 14 28 8 21 48 56 Projectile 175 | . 14 28 8 21 48 56 Critical Strikes 5 | . . 1 . . 2 2 Damage Taken 2692 | . 156 227 132 269 600 1308 Core 1444 | . 46 54 60 92 184 1008 Absorbed by Shields . | . . . . . . . Core Remaining (%) 86 | 100 81 86 89 86 78 . Volleys Fired 60 | . 16 22 8 7 . 7 Largest 2 | . 2 2 1 1 . 1 Hottest 60 | . 60 60 33 36 . 36 Shots Fired 95 | . 32 41 8 7 . 7 Gun 73 | . 32 41 . . . . Cannon . | . . . . . . . Launcher 22 | . . . 8 7 . 7 Special . | . . . . . . . Kinetic 40 | . 18 22 . . . . Thermal 19 | . . 19 . . . . Explosive 22 | . . . 8 7 . 7 Electromagnetic 14 | . 14 . . . . . Robot Hit Streak 13 | . 12 13 1 2 . 1 Robot Miss Streak 4 | . 1 4 2 2 . 2 Penetration Max . | . . . . . . . Secondary Targets 1 | . . 1 . . . . Max Gunslinging Chain 1 | . . 1 . . . . Shots Hit Robots 47 | . 23 19 1 3 . 1 Core Hits 54 | . 8 5 13 13 . 15 Critical Kills . | . . . . . . . Critical Parts Destroyed 2 | . 1 1 . . . . Critical Strikes 2 | . 1 1 . . . . Destroy 2 | . 1 1 . . . . Melee Attacks . | . . . . . . . Impact . | . . . . . . . Slashing . | . . . . . . . Piercing . | . . . . . . . Sneak Attacks . | . . . . . . . Combat Hostiles . | . . . . . . . Follow-up Attacks . | . . . . . . . Damage Inflicted 2575 | . 300 184 572 754 18 747 Guns 422 | . 238 184 . . . . Cannons . | . . . . . . . Explosions 2109 | . 62 . 572 754 . 721 Melee . | . . . . . . . Ramming 44 | . . . . . 18 26 Kinetic 199 | . 103 96 . . . . Thermal 150 | . 62 88 . . . . Explosive 2047 | . . . 572 754 . 721 Electromagnetic 135 | . 135 . . . . . Impact . | . . . . . . . Slashing . | . . . . . . . Piercing . | . . . . . . . Highest Corruption 3 | . . 1 1 . . 3 Average Corruption 1 | . . 1 1 . . 2 Corruption Purged . | . . . . . . . Corruption Blocked . | . . . . . . . Effects 1 | . . 1 . . . . Matter Fused 1 | . . 1 . . . . Overload Shots . | . . . . . . . Overflow Damage 49 | . . . 7 42 . . Projectiles . | . . . . . . . Explosions 49 | . . . 7 42 . . Melee . | . . . . . . . Knockbacks . | . . . . . . . Impact . | . . . . . . . Kinetic . | . . . . . . . Secondary . | . . . . . . . Self-Inflicted Damage 34 | . . . 12 . 9 13 Shots 1 | . . . 1 . . . Rammed 4 | . . . . . 1 3 Targets Rammed 4 | . . . . . 1 3 Kicked . | . . . . . . . Crushed . | . . . . . . . Highest Temperature 96 | . 96 42 4 6 22 . Average Temperature 25 | . 38 17 4 3 11 . Received Heat Transfer 333 | . 84 9 54 24 135 27 Siege Activations . | . . . . . . . Martial Activations . | . . . . . . . Shielding Activations . | . . . . . . . Robots Disrupted . | . . . . . . . Combat Hostiles . | . . . . . . . Robots Corrupted . | . . . . . . . Combat Hostiles . | . . . . . . . Parts Fried 1 | . 1 . . . . . Impact Corruptions . | . . . . . . . Robots Melted . | . . . . . . . Combat Hostiles . | . . . . . . . Parts Melted . | . . . . . . . Heat Transferred 250 | . 50 200 . . . . Parts Sabotaged . | . . . . . . . Parts Stolen . | . . . . . . . Parts Stripped . | . . . . . . . Power Chain Reactions 1 | . 1 . . . . . Alert | -11 -10 -9 -8 -7 -6 -5 ------- Run | Yrd Mat Mat Mat Fac Fac Fac Maximum Alert Level 1 | . . . 1 . . . Low Security (%) 96 | . 100 100 62 100 100 100 Level 1 3 | . . . 37 . . . Level 2 . | . . . . . . . Level 3 . | . . . . . . . Level 4 . | . . . . . . . Level 5 . | . . . . . . . High Security . | . . . . . . . Max Security . | . . . . . . . Peak Influence 283 | . 55 130 283 186 81 163 Initial 123 | . . 18 46 123 81 . Average 55 | . 11 42 134 94 22 74 Influence Increases 1048 | . 105 173 307 233 37 193 Destroy 0b10 Robot/C 580 | . 80 100 140 140 . 120 Destroy 0b10 Robot/NC 25 | . 5 . 5 10 . 5 Destroy Leader 90 | . 20 10 20 20 . 20 Successful Hack 21 | . . 3 11 . 7 . Disable Machine 15 | . . . . 15 . . Destroy Structure 122 | . . . 41 33 . 48 Partial Spotted 45 | . . . 30 . 15 . Lose Combat Pursuer 150 | . . 60 60 15 15 . Influence Decreases 975 | . 60 108 144 340 203 120 Entered New Map 326 | . . 27 64 150 85 . Time Decay 468 | . 60 61 60 180 57 50 Lost Part 130 | . . 20 20 10 10 70 Purge Threat 51 | . . . . . 51 . Squads Dispatched 6 | . 2 . . 2 . 2 Investigation 2 | . 1 . . . . 1 Extermination 2 | . . . . 1 . 1 Reinforcement 2 | . 1 . . 1 . . Assault . | . . . . . . . Garrison . | . . . . . . . Intercept . | . . . . . . . Searches Triggered . | . . . . . . . Construction Impeded 1 | . . . . 1 . . Haulers Reinforced . | . . . . . . . Active Scanning Responses . | . . . . . . . Cargo Convoy Interrupts . | . . . . . . . Stealth | -11 -10 -9 -8 -7 -6 -5 --------- Run | Yrd Mat Mat Mat Fac Fac Fac Distress Signals 3 | . . 1 . 2 . . Communications Jammed . | . . . . . . . Distress Signals . | . . . . . . . Times Spotted 83 | . 6 13 15 16 15 18 Peak Tracking Total 11 | . 4 7 10 7 8 11 Tactical Retreats 8 | . . 2 2 1 3 . Traps | -11 -10 -9 -8 -7 -6 -5 ------- Run | Yrd Mat Mat Mat Fac Fac Fac Traps Triggered 2 | . 1 . . . . 1 Indirectly . | . . . . . . . Trap Hack Attempts . | . . . . . . . Triggered . | . . . . . . . Disarmed . | . . . . . . . Reprogrammed . | . . . . . . . Reused . | . . . . . . . Traps Extracted . | . . . . . . . Installed . | . . . . . . . Triggered . | . . . . . . . Machines | -11 -10 -9 -8 -7 -6 -5 ---------- Run | Yrd Mat Mat Mat Fac Fac Fac Machines Disabled 1 | . . . . 1 . . Max in Single Turn 1 | . . . . 1 . . Machines Repaired . | . . . . . . . Machines Dismantled . | . . . . . . . Machines Sabotaged . | . . . . . . . Overloaded Fab Kills . | . . . . . . . Hacking | -11 -10 -9 -8 -7 -6 -5 --------- Run | Yrd Mat Mat Mat Fac Fac Fac Machines Accessed 15 | . 2 3 4 3 2 1 Terminals 14 | . 2 3 3 3 2 1 Fabricators . | . . . . . . . Repair Stations . | . . . . . . . Recycling Units . | . . . . . . . Scanalyzers 1 | . . . 1 . . . Garrison Access . | . . . . . . . Total Hacks 36 | . 4 8 10 5 6 3 Successful 10 | . 1 3 3 . 3 . Failed 26 | . 3 5 7 5 3 3 Catastrophic 8 | . 1 2 . 3 1 1 Database Lockouts . | . . . . . . . Manual 17 | . 1 2 4 3 4 3 Terminals 34 | . 4 8 8 5 6 3 Fabricators . | . . . . . . . Repair Stations . | . . . . . . . Recycling Units . | . . . . . . . Scanalyzers 2 | . . . 2 . . . Garrison Access . | . . . . . . . Terminal Hacks 9 | . 1 3 2 . 3 . Level Access Points 1 | . . . . . 1 . Alert Level 1 | . . 1 . . . . Unreport Threat 1 | . . . . . 1 . Dispatch Records 1 | . . 1 . . . . Registered Components 4 | . 1 1 1 . 1 . Zone Layout 1 | . . . 1 . . . Fabricator Hacks . | . . . . . . . Repair Station Hacks . | . . . . . . . Recycling Unit Hacks . | . . . . . . . Scanalyzer . | . . . . . . . Garrison Access Hacks . | . . . . . . . Unauthorized Hacks 1 | . . . 1 . . . Terminals 1 | . . . 1 . . . Assimilate 1 | . . . 1 . . . Fabricators . | . . . . . . . Repair Stations . | . . . . . . . Recycling Units . | . . . . . . . Scanalyzers . | . . . . . . . Garrison Access . | . . . . . . . Data Cores Recovered . | . . . . . . . Used . | . . . . . . . Hacking Detections 13 | . 2 3 3 3 1 1 Full Trace Events 5 | . 1 2 1 . . 1 Feedback Events 2 | . . 1 1 . . . Corruption 2 | . . 1 1 . . . Feedback Blocked . | . . . . . . . Robot Schematics Acquired . | . . . . . . . Robots Built . | . . . . . . . Authchips . | . . . . . . . Time . | . . . . . . . Total Robot Build Rating . | . . . . . . . Part Schematics Acquired . | . . . . . . . Parts Built . | . . . . . . . Authchips . | . . . . . . . Time . | . . . . . . . Total Part Build Rating . | . . . . . . . Parts Repaired . | . . . . . . . Time . | . . . . . . . Parts Recycled . | . . . . . . . Recycled Matter . | . . . . . . . Retrieved Matter . | . . . . . . . Retrieved Components . | . . . . . . . Parts Scanalyzed . | . . . . . . . Part Schematics Acquired . | . . . . . . . Parts Damaged . | . . . . . . . Bothacking | -11 -10 -9 -8 -7 -6 -5 ------------ Run | Yrd Mat Mat Mat Fac Fac Fac Used RIF Installer . | . . . . . . . Robots Hacked . | . . . . . . . Non-combat . | . . . . . . . Combat . | . . . . . . . Robot Hacks Applied . | . . . . . . . Relay Couplers Released . | . . . . . . . Fabnet Peak Effective % . | . . . . . . . Robots Rewired . | . . . . . . . Allies Hacked . | . . . . . . . Hacks Repelled . | . . . . . . . Allies | -11 -10 -9 -8 -7 -6 -5 -------- Run | Yrd Mat Mat Mat Fac Fac Fac Total Allies . | . . . . . . . Largest Group . | . . . . . . . Highest-Rated Group . | . . . . . . . Highest-Rated Ally . | . . . . . . . Total Orders . | . . . . . . . Ally Attacks . | . . . . . . . Total Damage . | . . . . . . . Kills . | . . . . . . . Allies Corrupted . | . . . . . . . Allies Melted . | . . . . . . . Intel | -11 -10 -9 -8 -7 -6 -5 ------- Run | Yrd Mat Mat Mat Fac Fac Fac Active Infowar (turns) 1186 | . 274 173 134 365 236 4 Sensors 1151 | . 244 173 134 365 235 . Seismic 30 | . 30 . . . . . ECM 77 | . . . . . 73 4 Robot Analysis Total . | . . . . . . . Derelict Logs Recovered . | . . . . . . . Drone Launches . | . . . . . . . Drone Recoveries . | . . . . . . . Exploration | -11 -10 -9 -8 -7 -6 -5 ------------- Run | Yrd Mat Mat Mat Fac Fac Fac Turns Passed 1438 | . 386 173 134 365 236 144 Spaces Moved 2593 | 1 204 235 293 955 697 208 Core 158 | . . . . . . 158 Treads 204 | . 204 . . . . . Legs 1 | 1 . . . . . . Wheels . | . . . . . . . Hover 17 | . . . . . 9 8 Flight 2213 | . . 235 293 955 688 42 Fastest Speed 29 | 120 160 37 34 29 29 34 Average Speed 44 | 120 160 37 34 30 31 57 Slowest Speed 160 | 120 160 40 37 31 60 100 Overloaded Moves . | . . . . . . . Propulsion Burnouts . | . . . . . . . Robots Hopped 21 | . . . 5 10 6 . Potential Cave-ins . | . . . . . . . Cave-ins Triggered . | . . . . . . . Exploration Rate (%) 23 | 2 41 26 36 26 19 12 Regions Visited 6 Branch Regions . Pre-discovered Areas . | . . . . . . . Known Exits Taken 3 | . . . 1 1 1 . Unknown Exits Taken 3 | 1 1 1 . . . . Scrap Searched . | . . . . . . . Spaces Dug . | . . . . . . . Terrain Destroyed 114 | . . . 55 34 . 25 Melee . | . . . . . . . Projectile . | . . . . . . . AOE 114 | . . . 55 34 . 25 Terrain Rammed . | . . . . . . . Walls Destroyed . | . . . . . . . Machines Disabled . | . . . . . . . Actions | -11 -10 -9 -8 -7 -6 -5 --------- Run | Yrd Mat Mat Mat Fac Fac Fac Total 2780 | . 235 286 312 1009 710 228 Wait 25 | . . 13 . 12 . . Move 2547 | . 203 234 283 934 685 208 Hop 20 | . . . 4 10 6 . Pick Up 23 | . 5 2 4 9 3 . Fast Attach 17 | . 4 2 5 4 2 . Attach 31 | . 2 4 3 11 5 6 Detach 15 | . . 1 2 6 2 4 Swap 12 | . . 1 1 6 4 . Drop 27 | . 5 7 2 10 3 . Fire 60 | . 16 22 8 7 . 7 Melee . | . . . . . . . Ram 3 | . . . . . . 3 Kick . | . . . . . . . Crush . | . . . . . . . Escape Stasis . | . . . . . . . Rewire . | . . . . . . . Trap . | . . . . . . . Miscellaneous . | . . . . . . . Route ------- -11/Scrapyard -10/Materials -9/Materials -8/Materials -7/Factory (discovered 2 exits: *Fac / *Sto) -6/Factory (discovered 4 exits: *Fac x4) -5/Factory History --------- Turn | Location | Event 1 | -11/Scrapyard | Discovered new exit (range 0) 1 | -11/Scrapyard | Entered Materials 316 | -10/Materials | Build established: Mutant 354 | -10/Materials | Discovered new exit (range 16) 387 | -10/Materials | Entered another Materials area 387 | -9/Materials | Evolved 2 slots: Utility x2 556 | -9/Materials | Discovered new exit (range 10) 560 | -9/Materials | Entered another Materials area 560 | -8/Materials | Evolved 2 slots: Propulsion x1, Utility x1 670 | -8/Materials | Destroyed 7 combat bots 672 | -8/Materials | Discovered new exit (range 15) 693 | -8/Materials | Identified exit to Factory 694 | -8/Materials | Entered Factory 694 | -7/Factory | Evolved 2 slots: Propulsion x1, Utility x1 777 | -7/Factory | Discovered new exit (range 8) 781 | -7/Factory | Identified exit to Storage 990 | -7/Factory | Build established: Hacker-Sprinter 1047 | -7/Factory | Discovered new exit (range 16) 1052 | -7/Factory | Identified exit to Factory 1059 | -7/Factory | Entered another Factory area 1059 | -6/Factory | Evolved 2 slots: Utility x2 1255 | -6/Factory | Identified exit to Factory 1295 | -6/Factory | Entered another Factory area 1295 | -5/Factory | Evolved 2 slots: Power x1, Utility x1 1350 | -5/Factory | Lost 8 parts (5n3u) 1407 | -5/Factory | Core integrity fell below 50% 1438 | -5/Factory | Core integrity fell below 20% 1439 | -5/Factory | Destroyed by H-71 Marshal with Heavy Mass Driver Last Messages --------------- R-10 Processor collects Lgt. Angular Momentum Engine. K-01 Serf collects debris. Prc. Grenade Launcher destroyed. The unstable cave ceiling collapses. Rocket Launcher destroyed. Slammed into W-25 Informer. Connecting with Terminal... ALERT: Suspicious activity at Terminal F017. Dispatching Investigation squad. System Shield destroyed. Slammed into T-07 Excavator. Imp. Signal Interpreter destroyed. System corrupted by crushing effect (+1). ALERT: Potential suspicious activity detected, Programmers report to Factory Zone 3E. Penetrated by Slug. Hacking Suite destroyed. Penetrated by Slug. Acquired 9 matter. Map ----- +----------------------------------------------------+ | | | | | | | | | ??????????######?????????????????????????????????? | | ?????????? #????????????????????????????????? | | ??????????? """ ??????????????##?????????????????? | | ??????????? "T" ??############ #?????????????????? | | ??????###??? ???# #?????????????????? | | ?????? #??? ???# ! #?????????????????? | | ??????# #####+##### ! #?????????????????? | | ?????## ## / #?????????????????? | | ###### # ##### [[ #?????????????????? | | # #???# [[ #?????????????????? | | ###### # #???# [[ "" #?????????????????? | | ?????## #???# "" #?????????????????? | | ??????# #???# """ Y" #?????????????????? | | ??????# [#???# """ "" #?????????????????? | | ??????# """ #???# """ "" #?????????????????? | | ??????# """ #???# #?????????????????? | | ??????# """ #???#######+######?????????????????? | | ??????# #??????# ##########+?????????? | | ??????# ######## ????????? | | ??????# % g ????????? | | ??????# ######## ##### g g ????????? | | ??????# ?????????????# @ ????????? | | ??????# ?????????????# ????????? | | ????###+######???????# ###+#######?????????? | | ??? #???????# #???????????????????? | | ??? #???????# #???????????????????? | | ?? #??????? ???????????????????? | | #? #??????# #??????????????????? | | # #??????# #??????????????????? | | # #??????# #??????????????????? | | + #??????+ H #??????????????????? | | # #??????# #??????????????????? | | # #??????#/ #??????????????????? | | #? #??????# #??????????????????? | | #? #??????# ! #??????????????????? | | #?? #???????## ##???????????????????? | | #??###########????????? ?????????????????????? | | #????????????????????????????????????????????????? | | #????????????????????????????????????????????????? | | #????????????????????????????????????????????????? | | #????????????????????????????????????????????????? | | #????????????????????????????????????????????????? | | ?????????????????????????????????????????????? | | ?????????????????????????????????????????????? | | ????????????????????????????????????????????? | | ???????????????????????????????????????????? | +----------------------------------------------------+ Best States ------------- Heat Dissipation 40 Energy Generation 18 Energy Capacity 300 Matter Stores 300 Matter Capacity 300 Sight Range 16 Robot Scan Range 16 Terrain Scan Density 10 ECM Strength 1 Additional Mass Support 6 Armor Coverage 150 Evasion (%) 64 Targeting Accuracy 6 Recoil Reduction 2 Offensive Hacking 20 Defensive Hacking 10 Item Schematics ----------------- None Robot Schematics ------------------ None Fabricated ------------ Nothing Repaired ---------- Nothing Alien Tech Used ----------------- None Achievements -------------- None Challenges ------------ None Game ------ Seed ElectrostormZioniteThrower Manual? 0 Play Time 00:34:27 Cumulative 55.5 hours Start 2025.06.15 @ 16:53:21 End 2025.06.15 @ 18:57:10 Sessions 1 Manual Loads 0 Difficulty Rogue Special Mode None Game No. 116 Rogue 113 Adventurer 0 Explorer 3 Win Type - Total 0 Types 0/0/0/0/0/0/0/0/0/0 Lore% 12 Gallery% 33 Achievement% 32 Wizard Run 0 Options --------- Layout 1 ASCII 1 Keyboard 0 Movement Arrows Keybinds 1 Fullscreen 1 Font 18/SmallcapsGlow Map View 50x40 Zoom Use 0% Tactical HUD 0 Map Filters NONE Filters NONE Steam 1 RUN: 37147243-d125-4efa-a2ac-2b9a509522ec